Workbook

Sheet HK2-2016-2017
A1: DANH SÁCH SINH VIÊN CÔNG NHẬN KẾT QUẢ RÈN LUYỆN
A2: HỌC KÌ 2 NĂM HỌC 2016-2017
A4: TT | B4: Học kì- Năm học | C4: Mã SV | D4: Họ và tên | E4: Lớp | F4: Điểm rèn luyện | G4: Điểm rèn luyện quy đổi | H4: Xếp loại | I4: Ghi chú
A5: 1 | B5: 2_2016-2017 | C5: 135NK0051 | D5: Nguyễn Hoàng Anh | E5: 55CNK1 | F5: 73 | G5: =F5/100 -> 0.73 | H5: =IF(F5>89,"Xuất sắc",IF((F5>79)*AND(F5<90),"Tốt",IF((F5>64)*AND(F5<80),"Khá",IF((F5>49)*AND(F5<65),"Trung bình",IF((F5>34)*AND(F5<50),"Yếu",IF((F5<35)*AND(F5>=0),"Kém"," ")))))) -> Khá
A6: =+A5+1 -> 2 | B6: 2_2016-2017 | C6: 135NK0053 | D6: Trần Thế Anh | E6: 55CNK1 | F6: 86 | G6: 0.86 | H6: Tốt
A7: 3 | B7: 2_2016-2017 | C7: 135NK0062 | D7: Trần Ngọc Chi | E7: 55CNK1 | F7: 90 | G7: 0.90 | H7: Xuất sắc
A8: 4 | B8: 2_2016-2017 | C8: 135NK0271 | D8: Trần Mạnh Cường | E8: 55CNK1 | F8: 90 | G8: 0.90 | H8: Xuất sắc
A9: 5 | B9: 2_2016-2017 | C9: 135NK0359 | D9: Lại Văn Duy | E9: 55CNK1 | F9: 93 | G9: 0.93 | H9: Xuất sắc
A10: 6 | B10: 2_2016-2017 | C10: 135NK0070 | D10: Lê Tùng Dương | E10: 55CNK1 | F10: 91 | G10: 0.91 | H10: Xuất sắc
A11: 7 | B11: 2_2016-2017 | C11: 125NK0035 | D11: Phạm Quốc Đạt | E11: 55CNK1 | F11: 75 | G11: 0.75 | H11: Khá
A12: 8 | B12: 2_2016-2017 | C12: 135NK0074 | D12: Tạ Quốc Đạt | E12: 55CNK1 | F12: 73 | G12: 0.73 | H12: Khá
A13: 9 | B13: 2_2016-2017 | C13: 135NK0073 | D13: Trần Hải Đăng | E13: 55CNK1 | F13: 73 | G13: 0.73 | H13: Khá
A14: 10 | B14: 2_2016-2017 | C14: 135NK0470 | D14: Nguyễn Vũ Đông | E14: 55CNK1 | F14: 83 | G14: 0.83 | H14: Tốt
A15: 11 | B15: 2_2016-2017 | C15: 135NK0080 | D15: Nguyễn Trường Giang | E15: 55CNK1 | F15: 77 | G15: 0.77 | H15: Khá
A16: 12 | B16: 2_2016-2017 | C16: 135NK0086 | D16: Nguyễn Quang Hiếu | E16: 55CNK1 | F16: 73 | G16: 0.73 | H16: Khá
A17: 13 | B17: 2_2016-2017 | C17: 135NK0839 | D17: Trần Huy Hoàng | E17: 55CNK1 | F17: 73 | G17: 0.73 | H17: Khá
A18: 14 | B18: 2_2016-2017 | C18: 135NK0091 | D18: Trần Thế Hoàng | E18: 55CNK1 | F18: 77 | G18: 0.77 | H18: Khá
A19: =+A18+1 -> 15 | B19: 2_2016-2017 | C19: 135NK0099 | D19: Đặng Ngọc Huy | E19: 55CNK1 | F19: 95 | G19: 0.95 | H19: Xuất sắc
A20: 16 | B20: 2_2016-2017 | C20: 135NK0102 | D20: Nguyễn Đức Khánh | E20: 55CNK1 | F20: 83 | G20: 0.83 | H20: Tốt
A21: 17 | B21: 2_2016-2017 | C21: 135NK1048 | D21: Vương Đình Khánh | E21: 55CNK1 | F21: 90 | G21: 0.90 | H21: Xuất sắc
A22: 18 | B22: 2_2016-2017 | C22: 135NK1546 | D22: Nguyễn Hữu Phúc | E22: 55CNK1 | F22: 76 | G22: 0.76 | H22: Khá
A23: 19 | B23: 2_2016-2017 | C23: 135NK0133 | D23: Nguyễn Siêu | E23: 55CNK1 | F23: 69 | G23: 0.69 | H23: Khá
A24: 20 | B24: 2_2016-2017 | C24: 135NK0146 | D24: Phạm Đăng Thịnh | E24: 55CNK1 | F24: 70 | G24: 0.70 | H24: Khá
A25: 21 | B25: 2_2016-2017 | C25: 135NK0149 | D25: Hoàng Minh Tiến | E25: 55CNK1 | F25: 75 | G25: 0.75 | H25: Khá
A26: 22 | B26: 2_2016-2017 | C26: 1251021303 | D26: Trần Ngọc Tú | E26: 55CNK1 | F26: 86 | G26: 0.86 | H26: Tốt
A27: 23 | B27: 2_2016-2017 | C27: 135NK2394 | D27: Vũ Trường Xuân | E27: 55CNK1 | F27: 92 | G27: 0.92 | H27: Xuất sắc
A28: 24 | B28: 2_2016-2017 | C28: 135NK0048 | D28: Trịnh Thị Diệu Ái | E28: 55CNK2 | F28: 80 | G28: 0.80 | H28: Tốt
A29: 25 | B29: 2_2016-2017 | C29: 135NK0049 | D29: Hoàng Tuấn Anh | E29: 55CNK2 | F29: 57 | G29: 0.57 | H29: Trung bình
A30: 26 | B30: 2_2016-2017 | C30: 135NK0090 | D30: Vũ Đức Anh | E30: 55CNK2 | F30: 87 | G30: 0.87 | H30: Tốt
A31: 27 | B31: 2_2016-2017 | C31: 135NK0185 | D31: Lê Xuân Chiến | E31: 55CNK2 | F31: 86 | G31: 0.86 | H31: Tốt
A32: 28 | B32: 2_2016-2017 | C32: 135NK0072 | D32: Lê Tuấn Đại | E32: 55CNK2 | F32: 59 | G32: 0.59 | H32: Trung bình
A33: 29 | B33: 2_2016-2017 | C33: 135NK0076 | D33: Nguyễn Minh Đức | E33: 55CNK2 | F33: 82 | G33: 0.82 | H33: Tốt
A34: 30 | B34: 2_2016-2017 | C34: 135NK0083 | D34: Nguyễn Thu Hằng | E34: 55CNK2 | F34: 92 | G34: 0.92 | H34: Xuất sắc
A35: 31 | B35: 2_2016-2017 | C35: 135NK0087 | D35: Trần Trung Hiếu | E35: 55CNK2 | F35: 85 | G35: 0.85 | H35: Tốt
A36: 32 | B36: 2_2016-2017 | C36: 135NK0774 | D36: Kiều Thị Phương Hoa | E36: 55CNK2 | F36: 86 | G36: 0.86 | H36: Tốt
A37: 33 | B37: 2_2016-2017 | C37: 135NK0088 | D37: Đinh Thế Hoàng | E37: 55CNK2 | F37: 85 | G37: 0.85 | H37: Tốt
A38: 34 | B38: 2_2016-2017 | C38: 135NK0098 | D38: Nguyễn Quang Huy | E38: 55CNK2 | F38: 70 | G38: 0.70 | H38: Khá
A39: 35 | B39: 2_2016-2017 | C39: 135NK1007 | D39: Đinh Thị Huyền | E39: 55CNK2 | F39: 92 | G39: 0.92 | H39: Xuất sắc
A40: 36 | B40: 2_2016-2017 | C40: 135NK1088 | D40: Trịnh Xuân Kiên | E40: 55CNK2 | F40: 81 | G40: 0.81 | H40: Tốt
A41: 37 | B41: 2_2016-2017 | C41: 135NK0106 | D41: Trương Quốc Lập | E41: 55CNK2 | F41: 72 | G41: 0.72 | H41: Khá
A42: 38 | B42: 2_2016-2017 | C42: 135NK0109 | D42: Nguyễn Tiến Lợi | E42: 55CNK2 | F42: 70 | G42: 0.70 | H42: Khá
A43: 39 | B43: 2_2016-2017 | C43: 135NK1404 | D43: Đinh Tuấn Nghĩa | E43: 55CNK2 | F43: 70 | G43: 0.70 | H43: Khá
A44: 40 | B44: 2_2016-2017 | C44: 135NK0116 | D44: Trần Đại Nghĩa | E44: 55CNK2 | F44: 59 | G44: 0.59 | H44: Trung bình
A45: 41 | B45: 2_2016-2017 | C45: 135NK0120 | D45: Nguyễn Tiến Nhật | E45: 55CNK2 | F45: 91 | G45: 0.91 | H45: Xuất sắc
A46: 42 | B46: 2_2016-2017 | C46: 135NK0122 | D46: Lưu Quốc Pháp | E46: 55CNK2 | F46: 69 | G46: 0.69 | H46: Khá
A47: 43 | B47: 2_2016-2017 | C47: 135NK0129 | D47: Nguyễn Thị Bảo Quyên | E47: 55CNK2 | F47: 85 | G47: 0.85 | H47: Tốt
A48: 44 | B48: 2_2016-2017 | C48: 135NK1733 | D48: Bùi Ngọc Sơn | E48: 55CNK2 | F48: 92 | G48: 0.92 | H48: Xuất sắc
A49: 45 | B49: 2_2016-2017 | C49: 135NK0138 | D49: Dương Công Sơn | E49: 55CNK2 | F49: 80 | G49: 0.80 | H49: Tốt
A50: 46 | B50: 2_2016-2017 | C50: 135NK0144 | D50: Trần Trung Thành | E50: 55CNK2 | F50: 70 | G50: 0.70 | H50: Khá
A51: 47 | B51: 2_2016-2017 | C51: 135NK0142 | D51: Nguyễn Vũ Thắng | E51: 55CNK2 | F51: 79 | G51: 0.79 | H51: Khá
A52: 48 | B52: 2_2016-2017 | C52: 135NK0159 | D52: Hoàng Tùng | E52: 55CNK2 | F52: 92 | G52: 0.92 | H52: Xuất sắc
A53: 49 | B53: 2_2016-2017 | C53: 135NK0162 | D53: Trịnh Lê Tùng | E53: 55CNK2 | F53: 82 | G53: =F53/100 -> 0.82 | H53: Tốt
A54: 50 | B54: 2_2016-2017 | C54: 135NK2330 | D54: Tạ Tố Uyên | E54: 55CNK2 | F54: 86 | G54: 0.86 | H54: Tốt
A55: 51 | B55: 2_2016-2017 | C55: 135NK2380 | D55: Lê Tuấn Vũ | E55: 55CNK2 | F55: 82 | G55: 0.82 | H55: Tốt
A56: 52 | B56: 2_2016-2017 | C56: 135NK0166 | D56: Nguyễn Thị Hồng Yến | E56: 55CNK2 | F56: 91 | G56: 0.91 | H56: Xuất sắc
A57: 53 | B57: 2_2016-2017 | C57: 135NK0050 | D57: Đỗ Kiều Anh | E57: 55NKN | F57: 70 | G57: 0.70 | H57: Khá
A58: 54 | B58: 2_2016-2017 | C58: 135NK0063 | D58: Lê Thế Chiến | E58: 55NKN | F58: 0 | G58: 0.00 | H58: Kém
A59: 55 | B59: 2_2016-2017 | C59: 135NK0064 | D59: Phạm Quốc Cường | E59: 55NKN | F59: 72 | G59: 0.72 | H59: Khá
A60: 56 | B60: 2_2016-2017 | C60: 125NK0034 | D60: Trần Thị Phương Dung | E60: 55NKN | F60: 80 | G60: 0.80 | H60: Tốt
A61: 57 | B61: 2_2016-2017 | C61: 135NK0075 | D61: Nguyễn Thanh Điệp | E61: 55NKN | F61: 76 | G61: 0.76 | H61: Khá
A62: 58 | B62: 2_2016-2017 | C62: 135NK0503 | D62: Nguyễn Trung Đức | E62: 55NKN | F62: 72 | G62: 0.72 | H62: Khá
A63: 59 | B63: 2_2016-2017 | C63: 135NK0514 | D63: Đỗ Thị Gấm | E63: 55NKN | F63: 80 | G63: 0.80 | H63: Tốt
A64: 60 | B64: 2_2016-2017 | C64: 135NK0079 | D64: Đinh Thị Hương Giang | E64: 55NKN | F64: 77 | G64: 0.77 | H64: Khá
A65: 61 | B65: 2_2016-2017 | C65: 135NK0577 | D65: Lê Xuân Hà | E65: 55NKN | F65: 88 | G65: 0.88 | H65: Tốt
A66: 62 | B66: 2_2016-2017 | C66: 135NK0576 | D66: Mai Thanh Hà | E66: 55NKN | F66: 88 | G66: 0.88 | H66: Tốt
A67: 63 | B67: 2_2016-2017 | C67: 135NK0081 | D67: Tưởng Ngân Hà | E67: 55NKN | F67: 86 | G67: 0.86 | H67: Tốt
A68: 64 | B68: 2_2016-2017 | C68: 135NK0084 | D68: Nguyễn Ngọc Hiển | E68: 55NKN | F68: 81 | G68: 0.81 | H68: =IF(F68>89,"Xuất sắc",IF((F68>79)*AND(F68<90),"Tốt",IF((F68>64)*AND(F68<80),"Khá",IF((F68>49)*AND(F68<65),"Trung bình",IF((F68>34)*AND(F68<50),"Yếu",IF((F68<35)*AND(F68>=0),"Kém"," ")))))) -> Tốt
A69: 65 | B69: 2_2016-2017 | C69: 135NK0736 | D69: Nguyễn Khắc Hiệp | E69: 55NKN | F69: 75 | G69: 0.75 | H69: Khá
A70: 66 | B70: 2_2016-2017 | C70: 135NK0085 | D70: Lê Trung Hiếu | E70: 55NKN | F70: 79 | G70: 0.79 | H70: Khá
A71: 67 | B71: 2_2016-2017 | C71: 125NK0038 | D71: Nguyễn Đình Hoàng | E71: 55NKN | F71: 70 | G71: 0.70 | H71: Khá
A72: 68 | B72: 2_2016-2017 | C72: 135NK0852 | D72: Hoàng Diệu Hồng | E72: 55NKN | F72: 84 | G72: 0.84 | H72: Tốt
A73: 69 | B73: 2_2016-2017 | C73: 135NK0096 | D73: Phạm Minh Hương | E73: 55NKN | F73: 85 | G73: 0.85 | H73: Tốt
A74: 70 | B74: 2_2016-2017 | C74: 125NK0045 | D74: Phạm Thanh Lan | E74: 55NKN | F74: 80 | G74: 0.80 | H74: Tốt
A75: 71 | B75: 2_2016-2017 | C75: 135NK0108 | D75: Nguyễn Khánh Linh | E75: 55NKN | F75: 83 | G75: 0.83 | H75: Tốt
A76: 72 | B76: 2_2016-2017 | C76: 1251021266 | D76: Tống Khánh Linh | E76: 55NKN | F76: 81 | G76: 0.81 | H76: Tốt
A77: 73 | B77: 2_2016-2017 | C77: 135NK1219 | D77: Hoàng Tuấn Long | E77: 55NKN | F77: 83 | G77: 0.83 | H77: Tốt
A78: 74 | B78: 2_2016-2017 | C78: 135NK0113 | D78: Lê Xuân Nam | E78: 55NKN | F78: 80 | G78: 0.80 | H78: Tốt
A79: 75 | B79: 2_2016-2017 | C79: 135NK0115 | D79: Vũ Hương Ngân | E79: 55NKN | F79: 89 | G79: 0.89 | H79: Tốt
A80: 76 | B80: 2_2016-2017 | C80: 135NK0119 | D80: Đặng Mỹ Ngọc | E80: 55NKN | F80: 84 | G80: 0.84 | H80: Tốt
A81: 77 | B81: 2_2016-2017 | C81: 135NK0118 | D81: Nguyễn Hồng Ngọc | E81: 55NKN | F81: 69 | G81: 0.69 | H81: Khá
A82: 78 | B82: 2_2016-2017 | C82: 135NK0123 | D82: Nguyễn Thị Lan Phương | E82: 55NKN | F82: 83 | G82: 0.83 | H82: Tốt
A83: =+A82+1 -> 79 | B83: 2_2016-2017 | C83: 135NK1572 | D83: Trịnh Hà Phương | E83: 55NKN | F83: 69 | G83: 0.69 | H83: Khá
A84: 80 | B84: 2_2016-2017 | C84: 135NK0125 | D84: Trần Mạnh Quân | E84: 55NKN | F84: 85 | G84: 0.85 | H84: Tốt
A85: 81 | B85: 2_2016-2017 | C85: 135NK0131 | D85: Đặng Xuân Quỳnh | E85: 55NKN | F85: 0 | G85: 0.00 | H85: Kém
A86: 82 | B86: 2_2016-2017 | C86: 135NK0132 | D86: Phạm Thị Như Quỳnh | E86: 55NKN | F86: 80 | G86: 0.80 | H86: Tốt
A87: 83 | B87: 2_2016-2017 | C87: 135NK0139 | D87: Vanhphaphone Sonthany | E87: 55NKN | F87: 65 | G87: 0.65 | H87: Khá
A88: 84 | B88: 2_2016-2017 | C88: 135NK0134 | D88: Đặng Thế Sơn | E88: 55NKN | F88: 58 | G88: 0.58 | H88: Trung bình
A89: 85 | B89: 2_2016-2017 | C89: 125NK0052 | D89: Lê Xuân Sơn | E89: 55NKN | F89: 68 | G89: 0.68 | H89: Khá
A90: 86 | B90: 2_2016-2017 | C90: 135NK0143 | D90: Nguyễn Hoài Thanh | E90: 55NKN | F90: 97 | G90: 0.97 | H90: Xuất sắc
A91: 87 | B91: 2_2016-2017 | C91: 135NK0145 | D91: Trần Thị Phương Thảo | E91: 55NKN | F91: 84 | G91: 0.84 | H91: Tốt
A92: 88 | B92: 2_2016-2017 | C92: 135NK1818 | D92: Nguyễn Quốc Thắng | E92: 55NKN | F92: 81 | G92: 0.81 | H92: Tốt
A93: 89 | B93: 2_2016-2017 | C93: 135NK0150 | D93: Nguyễn Hữu Tiến | E93: 55NKN | F93: 73 | G93: 0.73 | H93: Khá
A94: 90 | B94: 2_2016-2017 | C94: 135NK2049 | D94: Vương Đình Tiến | E94: 55NKN | F94: 85 | G94: 0.85 | H94: Tốt
A95: 91 | B95: 2_2016-2017 | C95: 135NK0151 | D95: Đỗ Thị Ngọc Trâm | E95: 55NKN | F95: 89 | G95: 0.89 | H95: Tốt
A96: 92 | B96: 2_2016-2017 | C96: 1351022253 | D96: Nguyễn Mạnh Tuấn | E96: 55NKN | F96: 66 | G96: 0.66 | H96: Khá
A97: 93 | B97: 2_2016-2017 | C97: 135NK0158 | D97: Phan Anh Tuấn | E97: 55NKN | F97: 80 | G97: 0.80 | H97: Tốt
A98: 94 | B98: 2_2016-2017 | C98: 135NK0160 | D98: Hồ Thanh Tùng | E98: 55NKN | F98: 70 | G98: 0.70 | H98: Khá
A99: 95 | B99: 2_2016-2017 | C99: 135NK2340 | D99: Đoàn Hồng Vân | E99: 55NKN | F99: 84 | G99: 0.84 | H99: Tốt
A100: 96 | B100: 2_2016-2017 | C100: 135NK2333 | D100: Phạm Thị Hồng Vân | E100: 55NKN | F100: 73 | G100: 0.73 | H100: Khá
A101: 97 | B101: 2_2016-2017 | C101: 1451012107 | D101: Hoàng Quốc Anh | E101: 56CNK | F101: 91 | G101: 0.91 | H101: Xuất sắc
A102: 98 | B102: 2_2016-2017 | C102: 145NK00046 | D102: Lê Nguyễn Hoàng Việt Anh | E102: 56CNK | F102: 89 | G102: 0.89 | H102: Tốt
A103: 99 | B103: 2_2016-2017 | C103: 145NK00047 | D103: Lê Thị Quỳnh Anh | E103: 56CNK | F103: 75 | G103: 0.75 | H103: Khá
A104: 100 | B104: 2_2016-2017 | C104: 1451012136 | D104: Lê Thị Quỳnh Anh | E104: 56CNK | F104: 75 | G104: 0.75 | H104: Khá
A105: 101 | B105: 2_2016-2017 | C105: 145NK00045 | D105: Nguyễn Huy Quang Anh | E105: 56CNK | F105: 73 | G105: 0.73 | H105: Khá
A106: 102 | B106: 2_2016-2017 | C106: 145NK00052 | D106: Nguyễn Quốc Anh | E106: 56CNK | F106: 68 | G106: 0.68 | H106: Khá
A107: 103 | B107: 2_2016-2017 | C107: 145NK00050 | D107: Phạm Ngọc Anh | E107: 56CNK | F107: 75 | G107: 0.75 | H107: Khá
A108: 104 | B108: 2_2016-2017 | C108: 145NK00048 | D108: Trần Hoàng Lê Anh | E108: 56CNK | F108: 89 | G108: 0.89 | H108: Tốt
A109: 105 | B109: 2_2016-2017 | C109: 145NK00056 | D109: Trần Nhật Duật | E109: 56CNK | F109: 73 | G109: 0.73 | H109: Khá
A110: 106 | B110: 2_2016-2017 | C110: 1552020001 | D110: NGHIÊM TIẾN DŨNG | E110: 56CNK | F110: 91 | G110: 0.91 | H110: Xuất sắc
A111: 107 | B111: 2_2016-2017 | C111: 1451041581 | D111: Lê Đức Duy | E111: 56CNK | F111: 75 | G111: 0.75 | H111: Khá
A112: 108 | B112: 2_2016-2017 | C112: 145NK00060 | D112: Lê Thành Đạt | E112: 56CNK | F112: 73 | G112: 0.73 | H112: Khá
A113: 109 | B113: 2_2016-2017 | C113: 1451130295 | D113: Nguyễn Dương Đạt | E113: 56CNK | F113: 75 | G113: 0.75 | H113: Khá
A114: 110 | B114: 2_2016-2017 | C114: 145NK00062 | D114: Dương Vũ Đức | E114: 56CNK | F114: 85 | G114: 0.85 | H114: Tốt
A115: 111 | B115: 2_2016-2017 | C115: 135NK0167 | D115: Nguyễn Xuân Đức | E115: 56CNK | F115: 89 | G115: 0.89 | H115: Tốt
A116: 112 | B116: 2_2016-2017 | C116: 1451070785 | D116: Phạm Nguyên Trường Giang | E116: 56CNK | F116: 69 | G116: 0.69 | H116: Khá
A117: 113 | B117: 2_2016-2017 | C117: 145NK00064 | D117: Ngô Hải Hà | E117: 56CNK | F117: 73 | G117: =F117/100 -> 0.73 | H117: Khá
A118: 114 | B118: 2_2016-2017 | C118: 145NK00066 | D118: Phạm Thị Mỹ Hạnh | E118: 56CNK | F118: 85 | G118: 0.85 | H118: Tốt
A119: 115 | B119: 2_2016-2017 | C119: 1451040198 | D119: Nguyễn Hoàng Thanh Hằng | E119: 56CNK | F119: 85 | G119: 0.85 | H119: Tốt
A120: 116 | B120: 2_2016-2017 | C120: 1451020644 | D120: Quách Diệp Hằng | E120: 56CNK | F120: 75 | G120: 0.75 | H120: Khá
A121: 117 | B121: 2_2016-2017 | C121: 145NK00067 | D121: Đặng Phú Hiện | E121: 56CNK | F121: 75 | G121: 0.75 | H121: Khá
A122: 118 | B122: 2_2016-2017 | C122: 135NK0731 | D122: Nguyễn Trọng Hiệp | E122: 56CNK | F122: 91 | G122: 0.91 | H122: Xuất sắc
A123: 119 | B123: 2_2016-2017 | C123: 145NK00069 | D123: Vũ Hào Hiệp | E123: 56CNK | F123: 73 | G123: 0.73 | H123: Khá
A124: 120 | B124: 2_2016-2017 | C124: 145NK00070 | D124: Vũ Minh Hiếu | E124: 56CNK | F124: 73 | G124: 0.73 | H124: Khá
A125: 121 | B125: 2_2016-2017 | C125: 1451012251 | D125: Đỗ Mạnh Hùng | E125: 56CNK | F125: 68 | G125: 0.68 | H125: Khá
A126: 122 | B126: 2_2016-2017 | C126: 145NK00073 | D126: Nguyễn Trọng Hùng | E126: 56CNK | F126: 75 | G126: 0.75 | H126: Khá
A127: 123 | B127: 2_2016-2017 | C127: 145NK00075 | D127: Nghiêm Quang Huy | E127: 56CNK | F127: 73 | G127: 0.73 | H127: Khá
A128: 124 | B128: 2_2016-2017 | C128: 145NK00077 | D128: Vũ Đức Huy | E128: 56CNK | F128: 89 | G128: 0.89 | H128: Tốt
A129: 125 | B129: 2_2016-2017 | C129: 1451012114 | D129: Cao Tuấn Hưng | E129: 56CNK | F129: 75 | G129: 0.75 | H129: Khá
A130: 126 | B130: 2_2016-2017 | C130: 145NK00079 | D130: Hứa Minh Khoa | E130: 56CNK | F130: 73 | G130: 0.73 | H130: Khá
A131: 127 | B131: 2_2016-2017 | C131: 145NK00081 | D131: Trần Trung Kiên | E131: 56CNK | F131: 73 | G131: 0.73 | H131: Khá
A132: 128 | B132: 2_2016-2017 | C132: 145NK00082 | D132: Nguyễn Tùng Lâm | E132: 56CNK | F132: 73 | G132: 0.73 | H132: =IF(F132>89,"Xuất sắc",IF((F132>79)*AND(F132<90),"Tốt",IF((F132>64)*AND(F132<80),"Khá",IF((F132>49)*AND(F132<65),"Trung bình",IF((F132>34)*AND(F132<50),"Yếu",IF((F132<35)*AND(F132>=0),"Kém"," ")))))) -> Khá
A133: 129 | B133: 2_2016-2017 | C133: 145NK00084 | D133: Nguyễn Văn Linh | E133: 56CNK | F133: 73 | G133: 0.73 | H133: Khá
A134: 130 | B134: 2_2016-2017 | C134: 145NK00085 | D134: Trịnh Thanh Long | E134: 56CNK | F134: 73 | G134: 0.73 | H134: Khá
A135: 131 | B135: 2_2016-2017 | C135: 1451040289 | D135: Phạm Văn Minh | E135: 56CNK | F135: 85 | G135: 0.85 | H135: Tốt
A136: 132 | B136: 2_2016-2017 | C136: 1451020913 | D136: Trần Vũ Nhật Minh | E136: 56CNK | F136: 73 | G136: 0.73 | H136: Khá
A137: 133 | B137: 2_2016-2017 | C137: 145NK00090 | D137: Mai Thị Hà My | E137: 56CNK | F137: 83 | G137: 0.83 | H137: Tốt
A138: 134 | B138: 2_2016-2017 | C138: 145NK00094 | D138: Nguyễn Trọng Nhân | E138: 56CNK | F138: 91 | G138: 0.91 | H138: Xuất sắc
A139: 135 | B139: 2_2016-2017 | C139: 1451021252 | D139: Nguyễn Thu Phương | E139: 56CNK | F139: 75 | G139: 0.75 | H139: Khá
A140: 136 | B140: 2_2016-2017 | C140: 145NK00105 | D140: Cao Ngọc Sang | E140: 56CNK | F140: 75 | G140: 0.75 | H140: Khá
A141: 137 | B141: 2_2016-2017 | C141: 145NK00104 | D141: Tạ Nguyễn Huyền Sang | E141: 56CNK | F141: 73 | G141: 0.73 | H141: Khá
A142: 138 | B142: 2_2016-2017 | C142: 145NK00107 | D142: Lê Tiến Tài | E142: 56CNK | F142: 91 | G142: 0.91 | H142: Xuất sắc
A143: 139 | B143: 2_2016-2017 | C143: 1451090869 | D143: Nguyễn Tuấn Tài | E143: 56CNK | F143: 73 | G143: 0.73 | H143: Khá
A144: 140 | B144: 2_2016-2017 | C144: 145NK00108 | D144: Dương Minh Tâm | E144: 56CNK | F144: 73 | G144: 0.73 | H144: Khá
A145: 141 | B145: 2_2016-2017 | C145: 145NK00112 | D145: Hoàng Công Thành | E145: 56CNK | F145: 71 | G145: 0.71 | H145: Khá
A146: 142 | B146: 2_2016-2017 | C146: 1451012010 | D146: Trần Hữu Thọ | E146: 56CNK | F146: 71 | G146: 0.71 | H146: Khá
A147: =+A146+1 -> 143 | B147: 2_2016-2017 | C147: 145NK00123 | D147: Thế Đức Trung | E147: 56CNK | F147: 72 | G147: 0.72 | H147: Khá
A148: 144 | B148: 2_2016-2017 | C148: 1451011814 | D148: Hoàng Anh Tuấn | E148: 56CNK | F148: 71 | G148: 0.71 | H148: Khá
A149: 145 | B149: 2_2016-2017 | C149: 145NK00125 | D149: Phạm Anh Tuấn | E149: 56CNK | F149: 71 | G149: 0.71 | H149: Khá
A150: 146 | B150: 2_2016-2017 | C150: 145NK00128 | D150: Nguyễn Thị Thu Uyên | E150: 56CNK | F150: 75 | G150: 0.75 | H150: Khá
A151: 147 | B151: 2_2016-2017 | C151: 1451012667 | D151: Lê Đức Vĩnh | E151: 56CNK | F151: 71 | G151: 0.71 | H151: Khá
A152: 148 | B152: 2_2016-2017 | C152: 135NK0165 | D152: Nguyễn Bích Vượng | E152: 56CNK | F152: 80 | G152: 0.80 | H152: Tốt
A153: 149 | B153: 2_2016-2017 | C153: 145NK00042 | D153: Nguyễn Đại An | E153: 56NKN | F153: 80 | G153: 0.80 | H153: Tốt
A154: 150 | B154: 2_2016-2017 | C154: 1451021036 | D154: Nguyễn Mai Anh | E154: 56NKN | F154: 80 | G154: 0.80 | H154: Tốt
A155: 151 | B155: 2_2016-2017 | C155: 145NK00051 | D155: Nguyễn Thị Vân Anh | E155: 56NKN | F155: 91 | G155: 0.91 | H155: Xuất sắc
A156: 152 | B156: 2_2016-2017 | C156: 1351122949 | D156: Nguyễn Duy Đức Bản | E156: 56NKN | F156: 83 | G156: 0.83 | H156: Tốt
A157: 153 | B157: 2_2016-2017 | C157: 145NK00133 | D157: Vũ Phương Chi | E157: 56NKN | F157: 91 | G157: 0.91 | H157: Xuất sắc
A158: 154 | B158: 2_2016-2017 | C158: 1451021139 | D158: Đỗ Thị Hương Diệu | E158: 56NKN | F158: 83 | G158: 0.83 | H158: Tốt
A159: 155 | B159: 2_2016-2017 | C159: 145NK00059 | D159: Nguyễn Bá Duy | E159: 56NKN | F159: 83 | G159: 0.83 | H159: Tốt
A160: 156 | B160: 2_2016-2017 | C160: 145NK00065 | D160: Bùi Phạm Thu Hà | E160: 56NKN | F160: 86 | G160: 0.86 | H160: Tốt
A161: 157 | B161: 2_2016-2017 | C161: 145NK00134 | D161: Đỗ Phương Hà | E161: 56NKN | F161: 83 | G161: 0.83 | H161: Tốt
A162: 158 | B162: 2_2016-2017 | C162: 1451021268 | D162: Nguyễn Thanh Hằng | E162: 56NKN | F162: 85 | G162: 0.85 | H162: Tốt
A163: 159 | B163: 2_2016-2017 | C163: 145NK00068 | D163: Giáp Ngọc Hiệp | E163: 56NKN | F163: 83 | G163: 0.83 | H163: Tốt
A164: 160 | B164: 2_2016-2017 | C164: 145NK00072 | D164: Đỗ Văn Hoàng | E164: 56NKN | F164: 85 | G164: 0.85 | H164: Tốt
A165: 161 | B165: 2_2016-2017 | C165: 145NK00076 | D165: Phạm Quang Huy | E165: 56NKN | F165: 77 | G165: 0.77 | H165: Khá
A166: 162 | B166: 2_2016-2017 | C166: 1552010025 | D166: PHẠM VIỆT HƯNG | E166: 56NKN | F166: 88 | G166: 0.88 | H166: Tốt
A167: 163 | B167: 2_2016-2017 | C167: 1552010036 | D167: PHẠM QUỐC KHÁNH | E167: 56NKN | F167: 81 | G167: 0.81 | H167: Tốt
A168: 164 | B168: 2_2016-2017 | C168: 145NK00078 | D168: Trần Bảo Khánh | E168: 56NKN | F168: 83 | G168: 0.83 | H168: Tốt
A169: 165 | B169: 2_2016-2017 | C169: 145NK00083 | D169: Bạch Thùy Linh | E169: 56NKN | F169: 78 | G169: 0.78 | H169: Khá
A170: 166 | B170: 2_2016-2017 | C170: 1451022656 | D170: Cao Vũ Nhật Linh | E170: 56NKN | F170: 78 | G170: 0.78 | H170: Khá
A171: 167 | B171: 2_2016-2017 | C171: 1451021064 | D171: Trần Việt Linh | E171: 56NKN | F171: 85 | G171: 0.85 | H171: Tốt
A172: 168 | B172: 2_2016-2017 | C172: 145NK00132 | D172: Vimonphone Luangoudom | E172: 56NKN | F172: 78 | G172: 0.78 | H172: Khá
A173: 169 | B173: 2_2016-2017 | C173: 1451022346 | D173: Bùi Đặng Hoàng Mai | E173: 56NKN | F173: 83 | G173: 0.83 | H173: Tốt
A174: 170 | B174: 2_2016-2017 | C174: 145NK00088 | D174: Đào Huệ Mai | E174: 56NKN | F174: 83 | G174: 0.83 | H174: Tốt
A175: 171 | B175: 2_2016-2017 | C175: 145NK00087 | D175: Tôn Nữ Thanh Mai | E175: 56NKN | F175: 90 | G175: 0.90 | H175: Xuất sắc
A176: 172 | B176: 2_2016-2017 | C176: 135NK0112 | D176: Đoàn Tuấn Minh | E176: 56NKN | F176: 0 | G176: 0.00 | H176: Kém
A177: 173 | B177: 2_2016-2017 | C177: 135NK1326 | D177: Hà Trần Minh | E177: 56NKN | F177: 80 | G177: 0.80 | H177: Tốt
A178: 174 | B178: 2_2016-2017 | C178: 145NK00091 | D178: Lê Thế Nam | E178: 56NKN | F178: 78 | G178: 0.78 | H178: Khá
A179: 175 | B179: 2_2016-2017 | C179: 145NK00093 | D179: Đinh Thị Quỳnh Nga | E179: 56NKN | F179: 83 | G179: 0.83 | H179: Tốt
A180: 176 | B180: 2_2016-2017 | C180: 145NK00092 | D180: Nguyễn Thị Nga | E180: 56NKN | F180: 80 | G180: 0.80 | H180: Tốt
A181: 177 | B181: 2_2016-2017 | C181: 1451081201 | D181: Nguyễn Thị Thanh Nga | E181: 56NKN | F181: 88 | G181: =F181/100 -> 0.88 | H181: Tốt
A182: 178 | B182: 2_2016-2017 | C182: 1451012367 | D182: Nguyễn Thị Minh Nhật | E182: 56NKN | F182: 83 | G182: 0.83 | H182: Tốt
A183: 179 | B183: 2_2016-2017 | C183: 1451032421 | D183: Nguyễn Thị Oanh | E183: 56NKN | F183: 80 | G183: 0.80 | H183: Tốt
A184: 180 | B184: 2_2016-2017 | C184: 145NK00099 | D184: Nguyễn Hà Quang | E184: 56NKN | F184: 80 | G184: 0.80 | H184: Tốt
A185: 181 | B185: 2_2016-2017 | C185: 1451070764 | D185: Phạm Quang Sơn | E185: 56NKN | F185: 70 | G185: 0.70 | H185: Khá
A186: 182 | B186: 2_2016-2017 | C186: 145NK00113 | D186: Vũ Trung Thành | E186: 56NKN | F186: 83 | G186: 0.83 | H186: Tốt
A187: 183 | B187: 2_2016-2017 | C187: 145NK00137 | D187: Đặng Thị Thảo | E187: 56NKN | F187: 86 | G187: 0.86 | H187: Tốt
A188: 184 | B188: 2_2016-2017 | C188: 145NK00116 | D188: Trần Thị Phương Thảo | E188: 56NKN | F188: 91 | G188: 0.91 | H188: Xuất sắc
A189: 185 | B189: 2_2016-2017 | C189: 145NK00117 | D189: Trương Thị Phương Thảo | E189: 56NKN | F189: 83 | G189: 0.83 | H189: Tốt
A190: 186 | B190: 2_2016-2017 | C190: 145NK00111 | D190: Lê Việt Thắng | E190: 56NKN | F190: 83 | G190: 0.83 | H190: Tốt
A191: 187 | B191: 2_2016-2017 | C191: 145NK00118 | D191: Đặng Quốc Thịnh | E191: 56NKN | F191: 84 | G191: 0.84 | H191: Tốt
A192: 188 | B192: 2_2016-2017 | C192: 1451092504 | D192: Đinh Thu Trang | E192: 56NKN | F192: 87 | G192: 0.87 | H192: Tốt
A193: 189 | B193: 2_2016-2017 | C193: 145NK00121 | D193: Trần Đỗ Mai Trang | E193: 56NKN | F193: 91 | G193: 0.91 | H193: Xuất sắc
A194: 190 | B194: 2_2016-2017 | C194: 145NK00122 | D194: Điêu Minh Trí | E194: 56NKN | F194: 83 | G194: 0.83 | H194: Tốt
A195: 191 | B195: 2_2016-2017 | C195: 135NK0154 | D195: Trần Huy Trọng | E195: 56NKN | F195: 78 | G195: 0.78 | H195: Khá
A196: 192 | B196: 2_2016-2017 | C196: 135NK0157 | D196: Nguyễn Ngọc Tuấn | E196: 56NKN | F196: 85 | G196: 0.85 | H196: =IF(F196>89,"Xuất sắc",IF((F196>79)*AND(F196<90),"Tốt",IF((F196>64)*AND(F196<80),"Khá",IF((F196>49)*AND(F196<65),"Trung bình",IF((F196>34)*AND(F196<50),"Yếu",IF((F196<35)*AND(F196>=0),"Kém"," ")))))) -> Tốt
A197: 193 | B197: 2_2016-2017 | C197: 1552020143 | D197: Bùi Thế Hồng Anh | E197: 57CNK1 | F197: 92 | G197: 0.92 | H197: Xuất sắc
A198: 194 | B198: 2_2016-2017 | C198: 1552020203 | D198: Đặng Trọng Anh | E198: 57CNK1 | F198: 0 | G198: 0.00 | H198: Kém
A199: 195 | B199: 2_2016-2017 | C199: 1552020031 | D199: Nguyễn Đức Anh | E199: 57CNK1 | F199: 86 | G199: 0.86 | H199: Tốt
A200: 196 | B200: 2_2016-2017 | C200: 1552020189 | D200: Nguyễn Tiến Anh | E200: 57CNK1 | F200: 86 | G200: 0.86 | H200: Tốt
A201: 197 | B201: 2_2016-2017 | C201: 1552020156 | D201: Đỗ Thị Ánh | E201: 57CNK1 | F201: 85 | G201: 0.85 | H201: Tốt
... 12155 more rows
